bitfinex/quotes_SOLUSD_20250930
["timestamp","ask_amount","ask_price","bid_price","bid_amount"]
[1759243727840,0.1,208.32,208.27,13.59559401]
[1759243728145,0.1,208.32,208.29,13.59559401]
[1759243730040,0.1,208.32,208.31,13.59559401]
[1759243730442,0.1,208.32,208.3,4.80076812]
[1759243730668,0.1,208.32,208.31,13.59559401]
[1759243731169,0.1,208.32,208.29,4.80098478]
[1759243731359,0.1,208.32,208.3,13.59559401]
[1759243731875,0.1,208.32,208.29,4.80098478]
[1759243731876,0.1,208.32,208.29,13.59559401]
[1759243732042,0.1,208.32,208.3,4.80076812]
[1759243732741,0.1,208.32,208.28,13.59559401]
[1759243732946,11.39234546,208.32,208.19,13.59559401]
[1759243733173,11.39234546,208.32,208.17,4.80376615]
[1759243733174,20.8,208.29,208.17,4.80376615]
[1759243733349,6.49195639,208.27,208.17,16.81318153]
[1759243733549,20.8,208.29,208.17,16.81318153]
[1759243733752,6.49195639,208.27,208.17,16.81318153]
[1759243734273,6.49195639,208.24,208.18,13.59559401]
[1759243734572,6.49195639,208.23,208.18,13.59559401]
[1759243734777,6.49195639,208.23,208.17,13.59559401]
[1759243734942,6.49195639,208.22,208.11,12.01244044]
[1759243735264,6.49195639,208.19,208.09,46.65403238]
[1759243735444,3.18003597,208.24,208.09,67.45403238]
[1759243735647,6.49195639,208.2,208.09,46.65403238]
[1759243735955,6.49195639,208.18,208.09,16.81964533]
[1759243736157,6.49195639,208.17,208.11,20.8]
[1759243736346,6.49195639,208.17,208.12,13.59559401]
[1759243736548,3.18003597,208.2,208.12,13.59559401]
[1759243736749,20.8,208.21,208.12,13.59559401]
[1759243736973,3.18003597,208.22,208.12,13.59559401]
[1759243737162,3.18003597,208.21,208.12,13.59559401]
[1759243738070,6.49195639,208.19,208.12,13.59559401]
[1759243738275,3.18003597,208.18,208.14,13.59559401]
[1759243738453,11.29538695,208.19,208.1,13.59559401]
[1759243738454,9.67199236,208.17,208.1,13.59559401]
[1759243738657,3.18003597,208.16,208.1,18.40097603]
[1759243738855,3.18003597,208.15,208.1,18.40097603]
[1759243739076,3.18003597,208.16,208.1,30.41443109]
[1759243739251,3.20056516,208.15,208.1,18.40097603]
[1759243739452,4.80333675,208.19,208.1,18.40097603]
[1759243739753,6.49195639,208.17,208.1,18.40097603]
[1759243739967,3.20058051,208.16,208.1,30.41443109]
[1759243740156,3.20058051,208.15,208.1,30.41443109]
[1759243740379,3.20058051,208.14,208.1,30.41443109]
[1759243740560,3.20370354,208.18,208.13,20.8]
[1759243740754,4.01739877,208.26,208.14,48.25559401]
[1759243740955,3.20317757,208.25,208.14,48.25559401]
[1759243741171,3.20317757,208.24,208.14,48.25559401]
[1759243741376,3.20317757,208.23,208.14,48.25559401]
[1759243741563,3.20317757,208.22,208.14,48.25559401]
[1759243741885,3.20317757,208.21,208.14,48.25559401]
[1759243742079,3.20317757,208.2,208.14,48.25559401]
[1759243742258,3.20317757,208.19,208.16,13.59559401]
[1759243742453,4.01739877,208.26,208.16,13.59559401]
[1759243742661,3.2085375,208.25,208.15,16.81479702]
[1759243742977,3.2085375,208.24,208.19,13.59559401]
[1759243743164,3.2085375,208.23,208.19,13.59559401]
[1759243743362,6.49195639,208.28,208.19,13.59559401]
[1759243743566,3.21054782,208.27,208.19,13.59559401]
[1759243743869,3.21054782,208.26,208.19,13.59559401]
[1759243744077,3.21054782,208.25,208.19,13.59559401]
[1759243744285,3.21054782,208.24,208.21,13.59559401]
[1759243744466,3.21211168,208.29,208.21,13.59559401]
[1759243744775,0.1,208.32,208.2,16.81075887]
[1759243744776,3.21211168,208.28,208.25,13.59559401]
[1759243744980,0.1,208.32,208.25,48.31559401]
[1759243745187,3.21145594,208.31,208.25,48.31559401]
[1759243745357,0.1,208.32,208.25,48.31559401]
[1759243745358,3.21145594,208.3,208.25,48.31559401]
[1759243745688,0.1,208.32,208.25,48.31559401]
[1759243745689,0.1,208.32,208.28,20.8]
[1759243745861,0.1,208.32,208.29,13.59559401]
[1759243746380,0.1,208.32,208.29,18.39641364]
[1759243746877,0.1,208.32,208.27,13.59559401]
[1759243748281,20.8,208.39,208.27,13.59559401]
[1759243748282,3.21360009,208.39,208.37,13.59559401]
[1759243748462,6.49195639,208.44,208.37,48.31559401]
[1759243748664,9.70555648,208.43,208.37,13.59559401]
[1759243748864,3.21360009,208.42,208.35,13.59559401]
[1759243749176,3.21360009,208.41,208.35,13.59559401]
[1759243749375,3.21360009,208.4,208.35,13.59559401]
[1759243749584,3.21360009,208.44,208.35,13.59559401]
[1759243749794,3.21360009,208.43,208.35,13.59559401]
[1759243749963,3.21360009,208.42,208.35,28.2136179]
[1759243750280,3.21360009,208.46,208.37,13.59559401]
[1759243750487,28.81072343,208.46,208.37,13.59559401]
[1759243750666,27.29195639,208.45,208.37,13.59559401]
[1759243751261,20.8,208.45,208.37,13.59559401]
[1759243751563,27.29195639,208.45,208.37,13.59559401]
[1759243751778,6.49195639,208.47,208.37,13.59559401]
[1759243751971,3.21360009,208.47,208.37,13.59559401]
[1759243752171,6.49195639,208.46,208.37,13.59559401]
[1759243752375,27.29195639,208.47,208.38,16.79623764]
[1759243752580,20.8,208.47,208.39,13.59559401]
[1759243752769,3.21360009,208.5,208.43,13.59559401]
[1759243752960,8.00930755,208.52,208.42,20.8]
[1759243753360,6.49195639,208.51,208.42,20.8]
[1759243753562,6.49195639,208.52,208.42,20.8]
[1759243753985,6.49195639,208.52,208.43,13.59559401]
[1759243754185,16.88416296,208.53,208.43,13.59559401]
[1759243754384,6.49195639,208.49,208.41,4.79820629]
[1759243754588,4.79617218,208.5,208.42,34.82]
[1759243754769,11.28812857,208.5,208.42,34.82]
[1759243754972,6.49195639,208.49,208.42,34.82]
[1759243755163,28.90922608,208.53,208.41,4.79820629]
[1759243755491,6.59195639,208.53,208.43,13.59559401]
[1759243755788,6.49195639,208.51,208.43,13.59559401]
[1759243755989,4.89548348,208.53,208.4,34.82]
[1759243756187,6.49195639,208.47,208.4,34.82]
[1759243756386,4.89548348,208.53,208.4,34.82]
[1759243756691,6.49195639,208.51,208.42,13.59559401]
[1759243756892,6.49195639,208.49,208.42,13.59559401]
[1759243757092,6.49195639,208.48,208.41,4.79823424]
[1759243757462,4.89548348,208.53,208.42,13.59559401]
[1759243757693,6.49195639,208.51,208.42,13.59559401]
[1759243758481,11.28801097,208.51,208.43,4.79777383]
[1759243759192,11.28801097,208.51,208.42,13.59559401]
[1759243759498,11.28801097,208.51,208.25,47.87262915]
[1759243759499,6.49195639,208.45,208.36,4.79938567]
[1759243759796,6.49195639,208.45,208.37,13.59559401]
[1759243760104,6.49195639,208.44,208.36,4.79938567]
[1759243760472,4.79777383,208.43,208.36,13.59559401]
[1759243760683,4.79777383,208.43,208.35,19.53656747]
[1759243760684,6.49195639,208.42,208.35,19.53656747]
[1759243760873,6.49195639,208.42,208.35,19.5366025]
[1759243761067,6.49195639,208.41,208.35,14.73701823]
[1759243761287,6.49195639,208.4,208.32,34.84]
[1759243761490,6.49195639,208.38,208.3,13.59559401]
[1759243761697,6.49195639,208.37,208.3,13.59559401]
[1759243761859,6.49195639,208.38,208.3,13.59559401]
[1759243762064,6.49195639,208.38,208.3,28.16086793]
[1759243762294,6.49195639,208.38,208.3,13.59559401]
[1759243762592,6.49195639,208.39,208.3,18.39636213]
[1759243762961,16.7930141,208.42,208.3,18.39636213]
[1759243762962,6.49195639,208.38,208.3,18.39636213]
[1759243763388,6.49195639,208.37,208.3,18.39636213]
[1759243763564,6.49195639,208.37,208.3,4.80076812]
[1759243764804,11.29114152,208.37,208.29,13.59559401]
[1759243765012,6.49195639,208.35,208.28,13.59559401]
[1759243765382,4.79918513,208.37,208.28,14.38778106]
[1759243765383,6.49195639,208.33,208.28,14.38778106]
[1759243765583,6.49195639,208.33,208.25,46.84463433]
[1759243765584,6.49195639,208.34,208.26,30.40150968]
[1759243765793,6.49195639,208.35,208.26,30.40150968]
[1759243766001,6.49195639,208.35,208.26,18.3972842]
[1759243766197,6.49195639,208.33,208.26,18.3972842]
[1759243766579,6.49195639,208.34,208.26,30.40150968]
[1759243766779,6.49195639,208.34,208.26,18.3972842]
[1759243767076,6.49195639,208.31,208.25,13.59559401]
[1759243767506,6.49195639,208.31,208.24,4.80203516]
[1759243767699,6.49195639,208.29,208.24,14.21883364]
[1759243768010,6.49195639,208.29,208.21,13.59559401]
[1759243768323,4.38920945,208.28,208.21,4.80284328]
[1759243768480,4.38920945,208.27,208.21,4.80284328]
[1759243768685,4.38920945,208.28,208.21,16.80995148]
[1759243768883,4.38920945,208.27,208.21,4.80284328]
[1759243769299,4.38920945,208.27,208.2,34.84]
[1759243769300,4.38920945,208.26,208.2,34.84]
[1759243769606,4.38920945,208.25,208.2,39.64306779]
[1759243769806,4.38920945,208.25,208.19,4.80329381]
[1759243770106,4.38920945,208.27,208.19,16.81155549]
[1759243771215,4.38920945,208.26,208.18,13.59559401]
[1759243771410,25.60122386,208.29,208.18,13.59559401]
[1759243771611,20.8,208.29,208.18,13.59559401]
[1759243771924,4.38920945,208.28,208.18,13.59559401]
[1759243772079,4.38920945,208.3,208.18,13.59559401]
[1759243772284,4.38920945,208.33,208.18,13.59559401]
[1759243772603,4.38920945,208.35,208.22,13.59559401]
[1759243772782,4.38920945,208.34,208.23,16.80833693]
[1759243772990,4.79960481,208.36,208.23,16.80833693]
[1759243772991,4.38920945,208.31,208.23,16.80833693]
[1759243773605,4.38920945,208.32,208.23,16.80833693]
[1759243773807,4.38920945,208.32,208.23,4.80238198]
[1759243773991,4.38920945,208.31,208.23,4.80238198]
[1759243774190,4.38920945,208.33,208.23,4.80238198]
[1759243774797,4.38920945,208.32,208.23,4.80238198]
[1759243775075,4.01739877,208.48,208.24,13.59559401]
[1759243775305,16.78818111,208.48,208.24,48.87559401]
[1759243775527,20.8,208.44,208.24,48.87559401]
[1759243775727,4.38920945,208.42,208.28,13.59559401]
[1759243775906,4.38920945,208.42,208.27,20.8]
[1759243775907,4.38920945,208.42,208.3,13.59559401]
[1759243776319,4.38920945,208.43,208.3,13.59559401]
[1759243776634,4.38920945,208.4,208.3,13.59559401]
[1759243776817,4.38920945,208.39,208.31,4.80053766]
[1759243777019,9.18794677,208.39,208.31,4.80053766]
[1759243777225,4.38920945,208.38,208.31,4.80053766]
[1759243777402,4.38920945,208.37,208.29,4.80078576]
[1759243777602,4.38920945,208.37,208.16,26.02922303]
[1759243777603,4.38920945,208.32,208.23,20.8]
[1759243777933,4.38920945,208.31,208.23,34.84]
[1759243778099,4.38920945,208.29,208.23,34.84]
[1759243778296,4.38920945,208.3,208.23,34.84]
[1759243778600,4.38920945,208.29,208.23,34.84]
[1759243778799,9.19041881,208.29,208.23,34.84]
[1759243779127,9.19041881,208.29,208.2,14.38904081]
[1759243779128,4.80120936,208.29,208.21,4.80284328]
[1759243779300,9.19041881,208.29,208.21,4.80284328]
[1759243779507,4.38920945,208.29,208.21,16.80995148]
[1759243779923,20.8,208.34,208.21,16.80995148]
[1759243779924,4.38920945,208.3,208.21,16.80995148]
[1759243780300,4.38920945,208.29,208.21,16.80995148]
[1759243780500,4.38920945,208.28,208.21,4.80284328]
[1759243780909,9.19055978,208.28,208.2,4.80307396]
[1759243781532,4.38920945,208.28,208.2,16.81075887]
[1759243781716,4.38920945,208.29,208.2,16.81075887]
[1759243782022,20.8,208.34,208.21,13.59559401]
[1759243782332,4.79940729,208.36,208.21,13.59559401]
[1759243782698,4.38920945,208.33,208.21,13.59559401]
[1759243782901,16.79787148,208.36,208.23,13.59559401]
[1759243783213,4.38920945,208.31,208.23,13.59559401]
[1759243783602,4.38920945,208.32,208.23,13.59559401]
[1759243784333,4.38920945,208.32,208.24,16.80752976]
[1759243785015,4.79987604,208.34,208.24,16.80752976]
[1759243785227,4.38920945,208.32,208.24,16.80752976]
[1759243786236,4.38920945,208.31,208.24,16.80752976]
[1759243786532,4.79754365,208.44,208.25,13.59559401]
[1759243786756,4.38920945,208.37,208.25,13.59559401]
[1759243786902,4.38920945,208.33,208.25,13.59559401]
[1759243787918,4.38920945,208.34,208.26,16.80591567]
[1759243788117,4.79892504,208.38,208.26,16.80591567]
[1759243788334,4.38920945,208.35,208.26,16.80591567]
[1759243788827,4.38920945,208.36,208.26,16.80591567]
[1759243789131,4.38920945,208.38,208.27,13.59559401]
[1759243789627,4.38920945,208.37,208.27,13.59559401]
[1759243790005,4.38920945,208.37,208.28,16.80430189]
[1759243790205,4.38920945,208.36,208.28,16.80430189]
[1759243790421,4.38920945,208.35,208.28,16.80430189]
[1759243790651,4.38920945,208.34,208.28,16.80430189]
[1759243790840,4.38920945,208.36,208.28,16.80430189]
[1759243791035,4.38920945,208.37,208.28,16.80430189]
[1759243791345,25.18920945,208.4,208.29,13.59559401]
[1759243791549,39.57801524,208.42,208.29,13.59559401]
[1759243791727,4.38920945,208.38,208.28,40.81044746]
[1759243791919,4.38920945,208.37,208.28,36.00921835]
[1759243792334,34.78,208.41,208.29,13.59559401]
[1759243792531,4.38920945,208.39,208.29,13.59559401]
[1759243792830,4.38920945,208.4,208.29,13.59559401]
[1759243793029,39.59814792,208.42,208.29,13.59559401]
[1759243793243,4.38920945,208.39,208.29,13.59559401]
[1759243793432,4.38920945,208.38,208.29,13.59559401]
[1759243793625,4.38920945,208.41,208.29,13.59559401]
[1759243793947,4.38920945,208.45,208.33,13.59559401]
[1759243794148,4.38920945,208.41,208.33,13.59559401]
[1759243794328,4.38920945,208.39,208.31,13.59559401]
[1759243794529,4.38920945,208.37,208.3,40.80652903]
[1759243795053,4.38920945,208.39,208.3,40.80652903]
[1759243795430,25.59816603,208.42,208.3,40.80652903]
[1759243795849,4.38920945,208.38,208.3,16.80268842]
[1759243796065,4.38920945,208.35,208.3,16.80268842]
[1759243796237,4.38920945,208.35,208.3,4.80076812]
[1759243796436,4.38920945,208.36,208.3,4.80076812]
[1759243796934,3.21674897,208.41,208.3,4.80076812]
[1759243797153,34.78,208.4,208.3,16.80268842]
[1759243797353,25.59816603,208.42,208.3,16.80268842]
[1759243797354,4.38920945,208.38,208.3,12.0019203]
[1759243798144,34.78,208.41,208.3,12.0019203]
[1759243798461,4.38920945,208.38,208.3,12.0019203]
[1759243800157,4.38920945,208.39,208.3,12.0019203]
[1759243800369,20.8,208.45,208.3,12.0019203]
[1759243800370,4.38920945,208.42,208.31,13.59559401]
[1759243800553,4.38920945,208.45,208.31,13.59559401]
[1759243800730,4.38920945,208.46,208.31,48.35559401]
[1759243801069,20.8,208.48,208.31,48.35559401]
[1759243801265,4.38920945,208.51,208.35,13.59559401]
[1759243801434,3.32068541,208.53,208.39,13.59559401]
[1759243801633,4.38920945,208.52,208.39,13.59559401]
[1759243801828,4.38920945,208.51,208.39,13.59559401]
[1759243802047,35.63616116,208.53,208.4,40.78694816]
[1759243802258,4.38920945,208.51,208.41,13.59559401]
[1759243802669,4.38920945,208.52,208.41,13.59559401]
[1759243802959,0.1,208.53,208.41,13.59559401]
[1759243803464,4.38920945,208.51,208.39,34.39559401]
[1759243803844,4.38920945,208.49,208.39,34.39559401]
[1759243804052,4.89552302,208.53,208.39,34.39559401]
[1759243804247,4.38920945,208.51,208.4,16.79462571]
[1759243804649,34.76,208.52,208.4,16.79462571]
[1759243804951,4.38920945,208.51,208.4,16.79462571]
[1759243805158,4.38920945,208.5,208.41,13.59559401]
[1759243805453,51.6242057,208.53,208.4,16.79462571]
[1759243805454,4.38920945,208.48,208.4,4.79846449]
[1759243805660,51.6242057,208.53,208.4,4.79846449]
[1759243805661,4.38920945,208.47,208.4,4.79846449]
[1759243805858,20.8,208.5,208.4,4.79846449]
[1759243806054,3.21514974,208.52,208.4,4.79846449]
[1759243806250,4.38920945,208.51,208.4,11.99616122]
[1759243806451,0.1,208.53,208.41,13.59559401]
[1759243806769,4.48920945,208.53,208.41,13.59559401]
[1759243807139,0.1,208.53,208.41,13.59559401]
[1759243807763,0.1,208.53,208.42,34.76]
[1759243807944,4.48920945,208.53,208.42,34.76]
[1759243808153,4.48920945,208.53,208.44,16.79140279]
[1759243808348,0.1,208.53,208.44,16.79140279]
[1759243808651,0.1,208.53,208.45,13.59559401]
[1759243809369,4.38920945,208.48,208.42,4.79782666]
[1759243809664,4.38920945,208.47,208.42,4.79782666]
[1759243809966,4.89551042,208.53,208.42,4.79782666]
[1759243810156,4.89551042,208.53,208.39,18.39428876]
[1759243810343,4.38920945,208.48,208.39,18.39428876]
[1759243810665,4.38920945,208.45,208.38,4.79891409]
[1759243810859,20.8,208.5,208.38,16.79622669]
[1759243811057,4.38920945,208.47,208.38,16.79622669]
[1759243812265,4.38920945,208.45,208.38,16.79622669]
[1759243812453,4.38920945,208.46,208.38,16.79622669]
[1759243812652,55.74,208.5,208.38,16.79622669]
[1759243812954,4.38920945,208.46,208.38,16.79622669]
[1759243813358,4.38920945,208.44,208.38,4.79891409]
[1759243813557,11.99111401,208.49,208.38,4.79891409]
[1759243813558,34.92,208.51,208.38,4.79891409]
[1759243813759,4.38920945,208.48,208.39,13.59559401]
[1759243814177,4.38920945,208.45,208.38,16.79622669]
[1759243814362,34.92,208.51,208.38,4.79891409]
[1759243814363,4.38920945,208.43,208.38,4.79891409]
[1759243814762,4.38920945,208.4,208.38,4.79891409]
[1759243814969,4.38920945,208.41,208.38,4.79891409]
[1759243815179,4.38920945,208.42,208.38,4.79891409]
[1759243815356,4.38920945,208.42,208.37,11.99778264]
[1759243815559,4.38920945,208.41,208.36,4.79938567]
[1759243815765,4.38920945,208.4,208.34,4.7998464]
[1759243816085,4.38920945,208.38,208.34,16.79946241]
[1759243816280,4.79685326,208.47,208.34,16.79946241]
[1759243816460,20.8,208.47,208.35,13.59559401]
[1759243816662,0.1,208.53,208.35,13.59559401]
[1759243816959,4.38920945,208.48,208.35,34.39559401]
[1759243817153,4.38920945,208.47,208.35,34.39559401]
[1759243817354,4.38920945,208.47,208.36,16.79784986]
[1759243817555,4.38920945,208.46,208.36,16.79784986]
[1759243817850,4.38920945,208.47,208.37,13.59559401]
[1759243818278,4.38920945,208.45,208.37,13.59559401]
[1759243818700,4.38920945,208.46,208.37,13.59559401]
[1759243819191,4.38920945,208.44,208.36,40.79477825]
[1759243819561,20.8,208.48,208.36,11.99846419]
[1759243819876,4.38920945,208.44,208.36,11.99846419]
[1759243820191,4.79685326,208.47,208.36,11.99846419]
[1759243820356,4.79685326,208.47,208.32,4.80030721]
[1759243820357,4.38920945,208.38,208.32,4.80030721]
[1759243820560,4.38920945,208.37,208.32,4.80030721]
[1759243820762,4.38920945,208.36,208.32,4.80030721]
[1759243820982,4.38920945,208.38,208.32,16.80107525]
[1759243821296,4.38920945,208.39,208.32,16.80107525]
[1759243821489,4.38920945,208.37,208.3,13.59559401]
[1759243821663,4.38920945,208.37,208.29,12.0021686]
[1759243822176,20.8,208.43,208.3,13.59559401]
[1759243822395,35.0,208.5,208.34,13.59559401]
[1759243822699,4.38920945,208.45,208.34,13.59559401]
[1759243823068,4.38920945,208.46,208.37,1991.9541]
[1759243823569,4.38920945,208.45,208.38,16.79623764]
[1759243823785,4.38920945,208.44,208.38,16.79623764]
[1759243823988,4.38920945,208.44,208.38,4.79892504]
[1759243824384,4.38920945,208.44,208.38,16.79623764]
[1759243824776,3.20886281,208.49,208.38,16.79623764]
[1759243824777,4.38920945,208.4,208.38,4.79892504]
[1759243825269,35.0,208.45,208.38,16.79623764]
[1759243825474,4.38920945,208.45,208.38,16.79623764]
[1759243826298,3.21229077,208.48,208.38,16.79623764]
[1759243826482,4.38920945,208.47,208.38,16.79623764]
[1759243826682,4.38920945,208.48,208.38,16.79623764]
[1759243826889,4.38920945,208.47,208.38,16.79623764]
[1759243827081,4.38920945,208.48,208.38,40.79086284]
[1759243827692,4.38920945,208.5,208.39,13.59559401]
[1759243827878,31.4,208.51,208.39,48.57559401]
[1759243828087,35.08,208.53,208.39,48.57559401]
[1759243828292,6.47437941,208.5,208.39,48.57559401]
[1759243828610,6.47437941,208.49,208.39,48.57559401]
[1759243828809,6.47437941,208.48,208.39,48.57559401]
[1759243829319,6.47437941,208.5,208.39,48.57559401]
[1759243829610,20.8,208.49,208.38,16.79623764]
[1759243829791,6.47437941,208.45,208.38,16.79623764]
[1759243830181,6.47437941,208.43,208.38,16.79623764]
[1759243830489,4.79627846,208.5,208.37,1991.9541]
[1759243830490,6.47437941,208.4,208.37,1991.9541]
[1759243830690,6.47437941,208.39,208.37,1991.9541]
[1759243831408,6.47437941,208.39,208.37,1996.75322428]
[1759243831610,6.47437941,208.4,208.37,1996.75322428]
[1759243831915,6.47437941,208.39,208.37,1996.75322428]
[1759243832422,6.47437941,208.38,208.37,1991.9541]
[1759243833899,41.49437941,208.38,208.37,1991.9541]
[1759243835507,58.30916011,208.38,208.37,1897.66139925]
[1759243835932,63.10808515,208.38,208.37,1897.66139925]
[1759243836141,69.58246456,208.38,208.37,1817.06802978]
[1759243836343,69.58246456,208.38,208.37,1791.12130895]
[1759243836527,63.14808515,208.38,208.37,1791.12130895]
[1759243837045,63.14808515,208.38,208.37,1699.49285404]
[1759243837254,11.27330445,208.38,208.37,1699.49285404]
[1759243837425,46.33330445,208.38,208.37,1699.49285404]
[1759243837750,59.92889846,208.38,208.37,1607.86439913]
[1759243838143,63.146551,208.38,208.37,1605.20015329]
[1759243838320,89.62093041,208.38,208.37,1550.23271543]
[1759243838749,28.086551,208.38,208.37,1458.60426052]
[1759243838942,59.92889846,208.38,208.37,1458.60426052]
[1759243839445,20.06997342,208.38,208.37,1458.60426052]
[1759243839649,55.14997342,208.38,208.37,1458.60426052]
[1759243840019,59.94889846,208.38,208.37,1458.60426052]
[1759243840421,53.47451905,208.38,208.37,1458.60426052]
[1759243840749,59.94889846,208.38,208.37,1458.60426052]
[1759243841448,63.16235578,208.38,208.37,1329.00950649]
[1759243841623,63.16235578,208.38,208.37,1242.46395599]
[1759243841823,63.16235578,208.38,208.37,1150.8032691]
[1759243842145,69.63673519,208.38,208.37,1028.50882175]
[1759243842319,69.63673519,208.38,208.37,858.46088352]
[1759243842826,69.63673519,208.38,208.37,707.00476728]
[1759243843037,69.63673519,208.38,208.37,608.94298654]
[1759243843235,63.14235578,208.38,208.37,608.94298654]
[1759243843429,63.14235578,208.38,208.37,517.31453163]
[1759243843628,63.14235578,208.38,208.37,514.65028579]
[1759243844450,69.61673519,208.38,208.37,235.46836094]
[1759243844629,20.8,208.27,208.15,4.80422772]
[1759243844948,6.47437941,208.22,208.15,4.80422772]
[1759243845135,35.06,208.21,208.15,4.80422772]
[1759243846343,35.06,208.21,208.15,16.81479702]
[1759243846729,35.06,208.21,208.15,4.80422772]
[1759243847339,41.53437941,208.21,208.13,4.80455474]
[1759243847523,35.06,208.21,208.13,4.80455474]
[1759243848219,35.06,208.21,208.11,0.2]
[1759243848220,20.8,208.17,208.11,0.2]
[1759243848420,35.06,208.16,208.11,0.2]
[1759243850142,20.8,208.13,208.11,0.2]
[1759243850339,35.06,208.12,208.11,0.2]
[1759243851262,55.86,208.12,208.11,0.2]
[1759243851868,13.59559401,208.17,208.11,0.2]
[1759243852045,20.8,208.13,208.11,0.2]
[1759243852247,35.04,208.12,208.11,0.2]
[1759243852562,35.02,208.12,208.11,0.2]
[1759243853667,20.8,208.17,208.11,0.2]
[1759243853859,20.8,208.13,208.11,0.2]
[1759243854162,35.04,208.12,208.11,0.2]
[1759243854767,20.8,208.17,208.11,0.2]
[1759243854965,20.8,208.13,208.11,0.2]
[1759243855463,35.02,208.12,208.11,5.00515112]
[1759243855669,35.02,208.12,208.11,0.2]
[1759243857394,53.42051424,208.12,208.11,0.2]
[1759243857689,20.8,208.13,208.11,0.2]
[1759243857892,35.02,208.12,208.11,0.2]
[1759243858272,34.39559401,208.16,208.11,0.2]
[1759243858599,20.8,208.12,208.11,0.2]
[1759243858761,69.41559401,208.12,208.11,0.2]
[1759243859163,74.22051424,208.12,208.11,0.2]
[1759243860785,34.39559401,208.12,208.11,0.2]
[1759243860975,69.45559401,208.12,208.11,0.2]
[1759243861293,74.26051424,208.12,208.11,0.2]
[1759243861497,69.45559401,208.12,208.11,0.2]
[1759243861664,48.65559401,208.12,208.11,0.2]
[1759243861870,8.4,208.14,208.11,0.2]
[1759243862069,35.04,208.13,208.11,0.2]
[1759243862972,55.84,208.13,208.11,0.2]
[1759243863175,35.04,208.13,208.11,0.2]
[1759243863394,20.09518685,208.12,208.11,0.2]
[1759243864688,48.65559401,208.12,208.11,0.2]
[1759243865278,53.46051424,208.12,208.11,0.2]
[1759243865475,48.65559401,208.12,208.11,0.2]
[1759243866586,55.84,208.12,208.11,0.2]
[1759243866781,69.43559401,208.12,208.11,0.2]
[1759243866984,75.93518685,208.12,208.11,0.2]
[1759243867197,80.74010708,208.12,208.11,0.2]
[1759243867888,34.39559401,208.04,208.03,0.2]
[1759243868091,75.95518685,208.04,208.03,0.2]
[1759243868697,69.45559401,208.04,208.03,0.2]
[1759243869419,75.95518685,208.04,208.03,0.2]
[1759243869811,69.45559401,208.04,208.03,0.2]
[1759243870001,55.86,208.04,208.03,0.2]
[1759243870631,80.76195477,208.04,208.03,0.2]
[1759243870806,55.86,208.04,208.03,0.2]
[1759243872227,80.76195477,208.04,208.03,0.2]
[1759243872608,75.95518685,208.04,208.03,0.2]
[1759243872795,55.86,208.04,208.03,0.2]
[1759243872994,20.8,208.08,208.03,0.2]
[1759243873326,13.59559401,208.11,208.04,6.49959284]
[1759243873503,35.12,208.1,208.06,6.49959284]
[1759243873697,20.8,208.07,208.04,4.80672311]
[1759243873899,20.8,208.07,208.06,6.49959284]
[1759243874123,35.1,208.07,208.06,6.49959284]
[1759243875007,35.1,208.07,208.03,0.2]
[1759243875513,35.1,208.07,208.04,6.49959284]
[1759243875718,35.1,208.07,208.03,5.00678797]
[1759243875911,35.1,208.07,208.06,6.49959284]
[1759243876111,35.14,208.07,208.06,6.49959284]
[1759243876493,35.14,208.07,208.03,5.00678797]
[1759243876697,35.14,208.07,208.06,6.49959284]
[1759243877326,55.94,208.07,208.03,6.69959284]
[1759243877831,55.94,208.07,208.03,0.2]
[1759243877999,20.8,208.04,208.03,0.2]
[1759243878198,55.94,208.04,208.03,0.2]
[1759243880022,60.74676792,208.04,208.03,0.2]
[1759243880206,55.94,208.04,208.03,0.2]
[1759243880412,60.74676792,208.04,208.03,0.2]
[1759243880729,80.84195477,208.04,208.03,0.2]
[1759243881026,84.04272764,208.04,208.03,0.2]
[1759243881323,84.04354505,208.04,208.03,0.2]
[1759243882529,84.04354505,208.04,208.03,1e-08]
[1759243882700,84.00354505,208.04,208.03,1e-08]
[1759243883029,80.80195477,208.04,208.03,1e-08]
[1759243883407,84.00634961,208.04,208.03,1e-08]
[1759243883715,77.50675677,208.04,208.03,1e-08]
[1759243883913,84.00634961,208.04,208.03,1e-08]
[1759243885433,37.59998885,208.04,208.03,1e-08]
[1759243885662,55.88,208.04,208.03,1e-08]
[1759243885938,59.08439484,208.04,208.03,1e-08]
[1759243886234,63.89116276,208.04,208.03,1e-08]
[1759243887115,77.48675677,208.04,208.03,1e-08]
[1759243887436,83.98634961,208.04,208.03,1e-08]